Workbook

Sheet Inleiding
D7: Voor het optimale werking van dit bestand, gelieve het eerst te downloaden alvorens gebruik.
D9: Deze simulator heeft tot doel bijkomende informatie te verschaffen aan de marktspelers met betrekking
D10: tot de toepassingsmodaliteiten van de tarieven voor toegang tot het net (*), de tarieven voor
D11: openbare dienstverplichtingen en de toeslagen. Wat niet beoogd wordt met dit programma:
D12: de aansluitingstarieven en de tarieven voor compensatie van kwartier-onevenwichten.
D14: Het simulatie-programma illustreert de berekening van de bedragen met betrekking tot de toegang tot
D15: het Elia-net door netgebruikers die hierop aangesloten zijn. Het houdt bovendien rekening met de regio
D16: waarbinnen het betrokken toegangspunt gesitueerd is, het infrastructuurniveau en het type toegangspunt.
D18: De tarieven zijn van toepassing van 1 januari 2027 tot 31 december 2027.
D19: Tarieven voor openbaredienstverplichtingen en heffingen zijn gevalideerd voor 2024 en zullen nog worden aangepast voor 2027.
D20: De simulatie kan gehanteerd worden voor netgebruikers die direct aangesloten zijn op het Elia-net,
D21: met of zonder lokale productie in hetzelfde toegangspunt. De simulatie is niet bedoeld voor distributienetbeheerders.
D23: Voor het bekomen van een simulatie dienen vooreerst de profielkarakteristieken van de toegang ingevoerd
D24: te worden in het blad “Gegevens”. De resultaten kunnen vervolgens bekeken worden op het blad
D25: “Resultaten I” (tarieven van toepassing op het betrokken toegangspunt) en “Resultaten II” (bedragen met
D26: betrekking tot de termen voor toegang tot het net, de openbare dienstverplichtingen en de toeslagen voor
D27: het betrokken toegangspunt).
D30: (*) Buiten het tarief voor bijkomende levering van reactieve energie en het tarief voor eventuele
D31: overschrijding van het ter beschikking gestelde vermogen.
D34: Disclaimer :
D36: Het hierboven weergegeven hulpmiddel en de daarin vervatte informatie en tarieven worden enkel
D37: meegedeeld voor informatieve doeleinden en beogen de berekening van de kostprijs voor toegang tot het
D38: net voor een gegeven toegangspunt voor een netgebruiker te vergemakkelijken. Echter, noch de
D39: opgegeven informatie en tarieven noch de berekende resultaten zijn van contractuele aard. Zij vormen
D40: geen aanbod tot het sluiten van een contract en kunnen Elia niet binden noch van Elia worden
D41: afgedwongen.
D43: ELIA verstrekt geen enkele garantie over het adequaat karakter, de accuraatheid, de volledigheid en de
D44: correctheid van de verschafte en/of de berekende informatie noch over de geldigheidsduur van de
D45: weergeven tarieven. ELIA zal dan ook niet aansprakelijk zijn voor de gevolgen voortvloeiend uit het
D46: eventueel niet volledig of correct zijn of het up to date zijn van de verschafte informatie en de tarieven.

Sheet Gegevens
C3: Gegevens in te vullen door de gebruiker
D5: 1. Karakteristieken van het toegangspunt
E7: Vul hierna het infrastructuurniveau, de regio en het type toegangspunt in.
E10: Infrastructuurniveau : | F10: In 70/36/30 kV-netten
E12: Regio : | F12: Het Brussels Gewest
E14: Type toegangspunt : | F14: Hoofdtoegangspunt
D16: 2. Netto afgename piek (in MW)
E18: Vul hierna de pieken voor afname in per maand (kolom A).
E19: Vul eveneens de pieken voor afname in tijdens de uren 17 tot 20, buiten weekend en feestdagen,
E20: enkel voor de maanden januari tot maart en november tot december (kolom B).
E22: N.B. : Per maand is de waarde in kolom B minstens gelijk aan de waarde in kolom A voor het jaar 2023.
F25: A (jaar 2023) | G25: B (jaar 2022) | H25: B (jaar 2023) | I25: Jaarpiek
E26: Januari | I26: =MAX($G$27:$G$37,H26) -> 0 | J26: =IF(H26>F26,"Combinatie pieken A en B NOK","") -> 
E27: Februari | I27: =MAX($G28:$G$37,H$26:H27) -> 0 | J27: =IF(H27>F27,"Combinatie pieken A en B NOK","") -> 
E28: Maart | I28: =MAX($G29:$G$37,H$26:H28) -> 0 | J28: =IF(H28>F28,"Combinatie pieken A en B NOK","") -> 
E29: April | I29: =MAX($G30:$G$37,H$26:H29) -> 0
E30: Mei | I30: =MAX($G31:$G$37,H$26:H30) -> 0
E31: Juni | I31: =MAX($G32:$G$37,H$26:H31) -> 0
E32: Juli | I32: =MAX($G33:$G$37,H$26:H32) -> 0
E33: Augustus | I33: =MAX($G34:$G$37,H$26:H33) -> 0
E34: September | I34: =MAX($G35:$G$37,H$26:H34) -> 0
E35: Oktober | I35: =MAX($G36:$G$37,H$26:H35) -> 0
E36: November | I36: =MAX($G37:$G$37,H$26:H36) -> 0 | J36: =IF(H36>F36,"Combinatie pieken A en B NOK","") -> 
E37: December | I37: =MAX(H$26:H37) -> 0 | J37: =IF(H37>F37,"Combinatie pieken A en B NOK","") -> 
D40: 3. Ter beschikking gestelde vermogen (in MVA)
E42: Vul hierna het ter beschikking gestelde vermogen bij afname in.
E44: N.B. : Het ter beschikking gestelde vermogen moet minstens gelijk zijn aan het maximum van de afgenomen
E45: piek van het jaar. Het ter beschikking gestelde vermogen moet rekening houden met het vermogen van de
E46: achterliggende installaties.
G48: =IF(F48<MAX(F26:F37)," Fout: lager dan de maximale piek 2019","") -> 
D51: 4. Netto afgenomen energie (in MWh)
E53: Vul hierna de netto afgenomen energie in per maand.
E55: Indien u wenst, kunt u een gebruiks-% inbrengen voor de automatische berekening van de maandelijkse energie
E56: op basis van de netto afgenomen pieken hierboven ingevuld en vervolgens op de knop klikken.
F58: 1
F61: Aantal uren per maand | G61: Maximale maandelijkse energie | H61: Afgenomen energie
E62: Januari | F62: 744 | G62: =F26*F62 -> 0 | I62: =IF(H62>G62,"Energie en piek onverenigbaar","") -> 
E63: Februari | F63: 696 | G63: 0 | I63: =IF(H63>G63,"Energie en piek onverenigbaar","") -> 
E64: Maart | F64: 743 | G64: 0
E65: April | F65: 720 | G65: 0
E66: Mei | F66: 744 | G66: 0
E67: Juni | F67: 720 | G67: 0
E68: Juli | F68: 744 | G68: 0
E69: Augustus | F69: 744 | G69: 0
E70: September | F70: 720 | G70: 0
E71: Oktober | F71: 745 | G71: 0
E72: November | F72: 720 | G72: 0
E73: December | F73: 744 | G73: 0
H74: =SUM(H62:H73) -> 0
D77: 5. Netto geïnjecteerde energie (en MWh)
E79: Vul hierna de netto geïnjecteerde energie in voor een jaar, indien van toepassing.
D84: 6. Gegevens betreffende de openbare dienstverplichtingen en toeslagen
E86: Bent u toegangshouder ? | G86: Nee
E88: Beschikt u over een sectorakkoord ? | G88: Nee | H88: Opgenomen in berekening indien toegangshouder
E90: Welk soort activiteit oefent u uit? | G90: Ander
H91: Opgenomen in berekening indien toegangshouder
H92: in Wallonië en sectorakkoord en/of convenant
E94: Dank u !
E95: De resultaten kunnen geconsulteerd worden op de worksheets “Resultaten I (Std)” en "Resultaten II (Std)”.

Sheet Resultaten I
B3: Tarieven voor :
B4: Type klant : | C4: Klant direct aan het Elia-net aangesloten
B5: Infrastructuurniveau : | C5: =D_Tension -> In 70/36/30 kV-netten
B6: Regio : | C6: =D_Region -> Het Brussels Gewest
B7: Type toegangspunt : | C7: =D_Type -> Hoofdtoegangspunt
B11: A. Tarieven voor het beheer en de ontwikkeling van de netinfrastructuur
D13: €/kW netto afgenomen per maand
C14: 1. Tarief voor de maandpiek voor afname | D14: =VLOOKUP($C$5,Tarieven!D9:F11,3,FALSE) -> 0.773
D16: €/kW netto afgenomen per jaar
C17: 2. Tarief voor de jaarpiek voor afname | D17: =VLOOKUP($C$5,Tarieven!D16:F18,3,FALSE) -> 18.7555
D19: €/kVA voor afname per jaar
C20: 3. Tarief voor het ter beschikking gestelde vermogen voor afname | D20: =IF($C$7="Hoofdtoegangspunt",VLOOKUP($C$5,Tarieven!D24:G26,3,FALSE),VLOOKUP($C$5,Tarieven!D24:H26,4,FALSE)) -> 17.3818
B22: B. Tarief voor het beheer van het elektrisch systeem
D23: €/kW netto afgenomen
D24: =VLOOKUP($C$5,Tarieven!D32:F34,3,FALSE) -> 4.1341
B26: C. Tarieven voor de vermogensreserves en de black start
D27: €/MWh netto afgenomen
C28: 1. voor de afname | D28: =VLOOKUP($C$5,Tarieven!D41:F43,3,FALSE) -> 1.6203
D30: €/MWh netto geïnjecteerd
C31: 2. voor de injectie | D31: =VLOOKUP($C$5,Tarieven!D47:F49,3,FALSE) -> 1.05
B33: D. Tarief voor integratie van de elektriciteitsmarkt
D34: €/MWh netto afgenomen
D35: =VLOOKUP($C$5,Tarieven!D54:F56,3,FALSE) -> 0.6682
B37: E. Tarieven voor Openbare Dienstverplichtingen
D38: €/MWh netto afgenomen
C39: 1. Tarief voor openbare dienstverplichtingen voor de financiering van de steunmaatregelen voor hernieuwbare energie en warmtekrachtkoppeling in Vlaanderen | D39: =IF($C$6="Vlaanderen",VLOOKUP($C$5,Tarieven!D63:F65,3,FALSE),0) -> 0
D41: €/MWh netto afgenomen
C42: 2. Tarief voor openbare dienstverplichtingen voor de financiering van de maatregelen ter bevordering van rationeel energiegebruik in Vlaanderen | D42: =IF($C$6="Vlaanderen",VLOOKUP($C$5,Tarieven!D70:F72,3,FALSE),0) -> 0
D44: Eerste component | E44: Tweede component
D45: €/MWh netto afgenomen | E45: €/MWh netto afgenomen
C46: 3. Tarief voor openbare dienstverplichtingen voor de financiering van de steunmaatregelen voor hernieuwbare energie in Wallonië | D46: =IF($C$6="Wallonië",VLOOKUP($C$5,Tarieven!D78:F80,3,FALSE),0) -> 0 | E46: =IF($C$6="Wallonië",VLOOKUP($C$5,Tarieven!D78:G80,4,FALSE),0) -> 0
D48: €/MWh netto afgenomen
C49: 4. Tarief voor openbare dienstverplichtingen voor de financiering van de steunmaatregelen voor hernieuwbare energie in Brussel | D49: =IF($C$6="Het Brussels Gewest",VLOOKUP($C$5,Tarieven!D84:F86,3,FALSE),0) -> 0.5949
B52: F. Taksen en Toeslagen
D53: €/MWh netto afgenomen
C54: 1. Toeslag voor het gebruik van het openbaar domein in Wallonië | D54: =IF($C$6="Wallonië",VLOOKUP($C$5,Tarieven!D92:F94,3,FALSE),0) -> 0
D56: €/MWh netto afgenomen
C57: 2. Toeslag retributie wegenisrecht in Brussel | D57: =IF($C$6="Het Brussels Gewest",VLOOKUP($C$5,Tarieven!D99:F101,3,FALSE),0) -> 4.1778
D59: €/MWh netto afgenomen
C60: 3. Toeslag voor de taksen “masten” en “sleuven” in Vlaanderen | D60: =IF($C$6="Vlaanderen",VLOOKUP($C$5,Tarieven!D106:F108,3,FALSE),0) -> 0

Sheet Resultaten II
B2: Resultaten
E4: Type klant : | F4: Klant direct aan het Elia-net aangesloten
E5: Infrastructuurniveau : | F5: =D_Tension -> In 70/36/30 kV-netten
E6: Regio : | F6: =D_Region -> Het Brussels Gewest
E7: Type toegangspunt : | F7: =D_Type -> Hoofdtoegangspunt
E8: Toegangshouder : | F8: =D_DA -> Nee
E9: Sectorakkoord : | F9: =D_DB -> Nee
E10: Soort activiteit : | F10: =D_TA -> Ander
B14: a. Term voor het beheer en de ontwikkeling van de netinfrastructuur :
C16: a.1) Term voor maandselijke piek :
F18: Maandselijke piek | H18: Tarief | J18: Bedrag
E19: Januari | F19: =Gegevens!F26 -> 0 | G19: MW * | H19: ='Resultaten I'!$D$14 -> 0.773 | I19: €/kW = | J19: =F19*H19*1000 -> 0 | K19: €
E20: Februari | F20: =Gegevens!F27 -> 0 | G20: MW * | H20: =H19 -> 0.773 | I20: €/kW = | J20: =F20*H20*1000 -> 0 | K20: €
E21: Maart | F21: =Gegevens!F28 -> 0 | G21: MW * | H21: =H20 -> 0.773 | I21: €/kW = | J21: 0 | K21: €
E22: April | F22: =Gegevens!F29 -> 0 | G22: MW * | H22: 0.773 | I22: €/kW = | J22: 0 | K22: €
E23: Mei | F23: =Gegevens!F30 -> 0 | G23: MW * | H23: 0.773 | I23: €/kW = | J23: 0 | K23: €
E24: Juni | F24: =Gegevens!F31 -> 0 | G24: MW * | H24: 0.773 | I24: €/kW = | J24: 0 | K24: €
E25: Juli | F25: =Gegevens!F32 -> 0 | G25: MW * | H25: 0.773 | I25: €/kW = | J25: 0 | K25: €
E26: Augustus | F26: =Gegevens!F33 -> 0 | G26: MW * | H26: 0.773 | I26: €/kW = | J26: 0 | K26: €
E27: September | F27: =Gegevens!F34 -> 0 | G27: MW * | H27: 0.773 | I27: €/kW = | J27: 0 | K27: €
E28: Oktober | F28: =Gegevens!F35 -> 0 | G28: MW * | H28: 0.773 | I28: €/kW = | J28: 0 | K28: €
E29: November | F29: =Gegevens!F36 -> 0 | G29: MW * | H29: 0.773 | I29: €/kW = | J29: 0 | K29: €
E30: December | F30: =Gegevens!F37 -> 0 | G30: MW * | H30: 0.773 | I30: €/kW = | J30: 0 | K30: €
I32: Totaal term voor maandselijke piek : | J32: =SUM(J19:J30) -> 0 | K32: €
C35: a.2) Term voor jaarlijkse piek :
F37: Jaarlijkse piek | H37: Tarief | J37: Bedrag
E38: Januari | F38: =Gegevens!I26 -> 0 | G38: MW * | H38: ='Resultaten I'!$D$17/12 -> 1.562958333 | I38: €/kW = | J38: =F38*H38*1000 -> 0 | K38: €
E39: Februari | F39: =Gegevens!I27 -> 0 | G39: MW * | H39: =H38 -> 1.562958333 | I39: €/kW = | J39: 0 | K39: €
E40: Maart | F40: =Gegevens!I28 -> 0 | G40: MW * | H40: =H39 -> 1.562958333 | I40: €/kW = | J40: 0 | K40: €
E41: April | F41: =Gegevens!I29 -> 0 | G41: MW * | H41: 1.562958333 | I41: €/kW = | J41: 0 | K41: €
E42: Mei | F42: =Gegevens!I30 -> 0 | G42: MW * | H42: 1.562958333 | I42: €/kW = | J42: 0 | K42: €
E43: Juni | F43: =Gegevens!I31 -> 0 | G43: MW * | H43: 1.562958333 | I43: €/kW = | J43: 0 | K43: €
E44: Juli | F44: =Gegevens!I32 -> 0 | G44: MW * | H44: 1.562958333 | I44: €/kW = | J44: 0 | K44: €
E45: Augustus | F45: =Gegevens!I33 -> 0 | G45: MW * | H45: 1.562958333 | I45: €/kW = | J45: 0 | K45: €
E46: September | F46: =Gegevens!I34 -> 0 | G46: MW * | H46: 1.562958333 | I46: €/kW = | J46: 0 | K46: €
E47: Oktober | F47: =Gegevens!I35 -> 0 | G47: MW * | H47: 1.562958333 | I47: €/kW = | J47: 0 | K47: €
E48: November | F48: =Gegevens!I36 -> 0 | G48: MW * | H48: 1.562958333 | I48: €/kW = | J48: 0 | K48: €
E49: December | F49: =Gegevens!I37 -> 0 | G49: MW * | H49: 1.562958333 | I49: €/kW = | J49: 0 | K49: €
I51: Totaal term voor jaarlijkse piek : | J51: =SUM(J38:J49) -> 0 | K51: €
C54: a.3) Term voor het ter beschikking gestelde vermogen voor afname :
F56: Vermogen | H56: Tarief | J56: Bedrag
F57: =Gegevens!$F$48 -> 0 | G57: MVA * | H57: ='Resultaten I'!$D$20 -> 17.3818 | I57: €/kVA | J57: =F57*H57*1000 -> 0 | K57: €
I59: Totaal term voor het beheer en de ontwikkeling van de netinfrastructuur : | J59: =J32+J51+J57 -> 0 | K59: €
B62: b) Term voor het beheer van het elektrisch systeem :
F64: Netto afgenomen energie | H64: Tarief | J64: Bedrag
E65: Januari | F65: =Gegevens!H62 -> 0 | G65: MWh * | H65: ='Resultaten I'!D24 -> 4.1341 | I65: €/MWh = | J65: =F65*H65 -> 0 | K65: €
E66: Februari | F66: =Gegevens!H63 -> 0 | G66: MWh * | H66: =H65 -> 4.1341 | I66: €/MWh = | J66: =F66*H66 -> 0 | K66: €
E67: Maart | F67: =Gegevens!H64 -> 0 | G67: MWh * | H67: =H66 -> 4.1341 | I67: €/MWh = | J67: 0 | K67: €
E68: April | F68: =Gegevens!H65 -> 0 | G68: MWh * | H68: 4.1341 | I68: €/MWh = | J68: 0 | K68: €
E69: Mei | F69: =Gegevens!H66 -> 0 | G69: MWh * | H69: 4.1341 | I69: €/MWh = | J69: 0 | K69: €
E70: Juni | F70: =Gegevens!H67 -> 0 | G70: MWh * | H70: 4.1341 | I70: €/MWh = | J70: 0 | K70: €
E71: Juli | F71: =Gegevens!H68 -> 0 | G71: MWh * | H71: 4.1341 | I71: €/MWh = | J71: 0 | K71: €
E72: Augustus | F72: =Gegevens!H69 -> 0 | G72: MWh * | H72: 4.1341 | I72: €/MWh = | J72: 0 | K72: €
E73: September | F73: =Gegevens!H70 -> 0 | G73: MWh * | H73: 4.1341 | I73: €/MWh = | J73: 0 | K73: €
E74: Oktober | F74: =Gegevens!H71 -> 0 | G74: MWh * | H74: 4.1341 | I74: €/MWh = | J74: 0 | K74: €
E75: November | F75: =Gegevens!H72 -> 0 | G75: MWh * | H75: 4.1341 | I75: €/MWh = | J75: 0 | K75: €
E76: December | F76: =Gegevens!H73 -> 0 | G76: MWh * | H76: 4.1341 | I76: €/MWh = | J76: 0 | K76: €
I78: Totaal term voor het beheer van het elektrisch systeem : | J78: =SUM(J65:J76) -> 0 | K78: €
B81: c) Term voor de vermogensreserves en de black start :
D83: c.1. Voor de afname :
F84: Netto afgenomen energie | H84: Tarief | J84: Bedrag
E85: Januari | F85: =Gegevens!H62 -> 0 | G85: MWh * | H85: ='Resultaten I'!D28 -> 1.6203 | I85: €/MWh = | J85: =F85*H85 -> 0 | K85: €
E86: Februari | F86: =Gegevens!H63 -> 0 | G86: MWh * | H86: =H85 -> 1.6203 | I86: €/MWh = | J86: =F86*H86 -> 0 | K86: €
E87: Maart | F87: =Gegevens!H64 -> 0 | G87: MWh * | H87: =H86 -> 1.6203 | I87: €/MWh = | J87: 0 | K87: €
E88: April | F88: =Gegevens!H65 -> 0 | G88: MWh * | H88: 1.6203 | I88: €/MWh = | J88: 0 | K88: €
E89: Mei | F89: =Gegevens!H66 -> 0 | G89: MWh * | H89: 1.6203 | I89: €/MWh = | J89: 0 | K89: €
E90: Juni | F90: =Gegevens!H67 -> 0 | G90: MWh * | H90: 1.6203 | I90: €/MWh = | J90: 0 | K90: €
E91: Juli | F91: =Gegevens!H68 -> 0 | G91: MWh * | H91: 1.6203 | I91: €/MWh = | J91: 0 | K91: €
E92: Augustus | F92: =Gegevens!H69 -> 0 | G92: MWh * | H92: 1.6203 | I92: €/MWh = | J92: 0 | K92: €
E93: September | F93: =Gegevens!H70 -> 0 | G93: MWh * | H93: 1.6203 | I93: €/MWh = | J93: 0 | K93: €
E94: Oktober | F94: =Gegevens!H71 -> 0 | G94: MWh * | H94: 1.6203 | I94: €/MWh = | J94: 0 | K94: €
E95: November | F95: =Gegevens!H72 -> 0 | G95: MWh * | H95: 1.6203 | I95: €/MWh = | J95: 0 | K95: €
E96: December | F96: =Gegevens!H73 -> 0 | G96: MWh * | H96: 1.6203 | I96: €/MWh = | J96: 0 | K96: €
D98: Totaal term voor de vermogensreserves en de black start voor de afname : | J98: =SUM(J85:J96) -> 0 | K98: €
D100: c.2. Voor de injectie :
F101: Netto geïnjecteerde energie | H101: Tarief | J101: Bedrag
F102: =Gegevens!F81 -> 0 | G102: MWh * | H102: ='Resultaten I'!D31 -> 1.05 | I102: €/MWh = | J102: =F102*H102 -> 0 | K102: €
D104: Totaal term voor de vermogensreserves en de black start : | J104: =J98+J102 -> 0 | K104: €
B107: d) Term voor integratie van de elektriciteitsmarkt :
F109: Netto afgenomen energie | H109: Tarief | J109: Bedrag
E110: Januari | F110: =Gegevens!H62 -> 0 | G110: MWh * | H110: ='Resultaten I'!D35 -> 0.6682 | I110: €/MWh = | J110: =F110*H110 -> 0 | K110: €
E111: Februari | F111: =Gegevens!H63 -> 0 | G111: MWh * | H111: =H110 -> 0.6682 | I111: €/MWh = | J111: =F111*H111 -> 0 | K111: €
E112: Maart | F112: =Gegevens!H64 -> 0 | G112: MWh * | H112: =H111 -> 0.6682 | I112: €/MWh = | J112: 0 | K112: €
E113: April | F113: =Gegevens!H65 -> 0 | G113: MWh * | H113: 0.6682 | I113: €/MWh = | J113: 0 | K113: €
E114: Mei | F114: =Gegevens!H66 -> 0 | G114: MWh * | H114: 0.6682 | I114: €/MWh = | J114: 0 | K114: €
E115: Juni | F115: =Gegevens!H67 -> 0 | G115: MWh * | H115: 0.6682 | I115: €/MWh = | J115: 0 | K115: €
E116: Juli | F116: =Gegevens!H68 -> 0 | G116: MWh * | H116: 0.6682 | I116: €/MWh = | J116: 0 | K116: €
E117: Augustus | F117: =Gegevens!H69 -> 0 | G117: MWh * | H117: 0.6682 | I117: €/MWh = | J117: 0 | K117: €
E118: September | F118: =Gegevens!H70 -> 0 | G118: MWh * | H118: 0.6682 | I118: €/MWh = | J118: 0 | K118: €
E119: Oktober | F119: =Gegevens!H71 -> 0 | G119: MWh * | H119: 0.6682 | I119: €/MWh = | J119: 0 | K119: €
E120: November | F120: =Gegevens!H72 -> 0 | G120: MWh * | H120: 0.6682 | I120: €/MWh = | J120: 0 | K120: €
E121: December | F121: =Gegevens!H73 -> 0 | G121: MWh * | H121: 0.6682 | I121: €/MWh = | J121: 0 | K121: €
I123: Totaal term voor integratie van de elektriciteitsmarkt : | J123: =SUM(J110:J121) -> 0 | K123: €
B126: e) Openbare Dienstverplichtingen :
C128: e.1.) Financiering van de steunmaatregelen voor hernieuwbare energie en warmtekrachtkoppeling (Vlaams gewest)
D129: De vaststelling van het tarief is niet afhankelijk van het voorgaande jaar, maar van het jaar dat bij referentie is gekozen, in tegenstelling tot wat in de tarieven is bepaald.
D131: =IF($F$6="Vlaanderen","","Niet van toepassing in deze regio") -> Niet van toepassing in deze regio
E132: Schijven | F132: Netto afgenomen energie per schijf | H132: Tarief | J132: Bedrag | M132: Degressiviteit
E133: 0-1000 | F133: =IF($F$6<>"Vlaanderen","",IF(Gegevens!H74<1000,Gegevens!H74,0)) ->  | G133: =IF($F$6<>"Vlaanderen","","MWh *") ->  | H133: =IF($F$6<>"Vlaanderen","",'Resultaten I'!$D$39) ->  | I133: =IF($F$6<>"Vlaanderen","","€/MWh =") ->  | J133: =IF($F$6<>"Vlaanderen","",F133*H133*M133) ->  | K133: =IF($F$6<>"Vlaanderen","","€") ->  | M133: =IF($F$6<>"Vlaanderen","",1) -> 
E134: 1000-20000 | F134: =IF($F$6<>"Vlaanderen","",IF(AND(1000<=Gegevens!H74,Gegevens!H74<20000),Gegevens!H74,0)) ->  | G134: =IF($F$6<>"Vlaanderen","","MWh *") ->  | H134: =IF($F$6<>"Vlaanderen","",'Resultaten I'!$D$39) ->  | I134: =IF($F$6<>"Vlaanderen","","€/MWh =") ->  | J134: =IF($F$6<>"Vlaanderen","",F134*H134*M134) ->  | K134: =IF($F$6<>"Vlaanderen","","€") ->  | M134: =IF($F$6<>"Vlaanderen","",0.53) -> 
E135: 20000-100000 | F135: =IF($F$6<>"Vlaanderen","",IF(AND(20000<=Gegevens!H74,Gegevens!H74<100000),Gegevens!H74,0)) ->  | G135: =IF($F$6<>"Vlaanderen","","MWh *") ->  | H135: =IF($F$6<>"Vlaanderen","",'Resultaten I'!$D$39) ->  | I135: =IF($F$6<>"Vlaanderen","","€/MWh =") ->  | J135: =IF($F$6<>"Vlaanderen","",F135*H135*M135) ->  | K135: =IF($F$6<>"Vlaanderen","","€") ->  | M135: =IF($F$6<>"Vlaanderen","",0.2) -> 
E136: 100000-250000 | F136: =IF($F$6<>"Vlaanderen","",IF(AND(100000<=Gegevens!H74,Gegevens!H74<250000),Gegevens!H74,0)) ->  | G136: =IF($F$6<>"Vlaanderen","","MWh *") ->  | H136: =IF($F$6<>"Vlaanderen","",'Resultaten I'!$D$39) ->  | I136: =IF($F$6<>"Vlaanderen","","€/MWh =") ->  | J136: =IF($F$6<>"Vlaanderen","",F136*H136*M136) ->  | K136: =IF($F$6<>"Vlaanderen","","€") ->  | M136: =IF($F$6<>"Vlaanderen","",0.2) -> 
E137: >250000 | F137: =IF($F$6<>"Vlaanderen","",IF(250000<=Gegevens!H74,Gegevens!H74,0)) ->  | G137: =IF($F$6<>"Vlaanderen","","MWh *") ->  | H137: =IF($F$6<>"Vlaanderen","",'Resultaten I'!$D$39) ->  | I137: =IF($F$6<>"Vlaanderen","","€/MWh =") ->  | J137: =IF($F$6<>"Vlaanderen","",F137*H137*M137) ->  | K137: =IF($F$6<>"Vlaanderen","","€") ->  | M137: =IF($F$6<>"Vlaanderen","",0.02) -> 
E139: Totaal term voor Financiering van de steunmaatregelen voorhernieuwbare energie en warmtekrachtkoppeling : | J139: =SUM(J133:J137) -> 0 | K139: €
C141: e.2.) Financiering van de maatregelen ter bevordering van rationeel energiegebruik (Vlaams gewest)
D142: =IF($F$6="Vlaanderen","","Niet van toepassing in deze regio") -> Niet van toepassing in deze regio
F143: Netto afgenomen energie | H143: Tarief | J143: Bedrag
E144: Januari | F144: =IF($F$6<>"Vlaanderen","",Gegevens!H62) ->  | G144: =IF($F$6<>"Vlaanderen","","MWh *") ->  | H144: =IF($F$6<>"Vlaanderen","",'Resultaten I'!$D$42) ->  | I144: =IF($F$6<>"Vlaanderen","","€/MWh =") ->  | J144: =IF($F$6<>"Vlaanderen","",F144*H144) ->  | K144: =IF($F$6<>"Vlaanderen","","€") -> 
E145: Februari | F145: =IF($F$6<>"Vlaanderen","",Gegevens!H63) ->  | H145: =IF($F$6<>"Vlaanderen","",'Resultaten I'!$D$42) -> 
E146: Maart | F146: =IF($F$6<>"Vlaanderen","",Gegevens!H64) ->  | H146: =IF($F$6<>"Vlaanderen","",'Resultaten I'!$D$42) -> 
E147: April | F147: =IF($F$6<>"Vlaanderen","",Gegevens!H65) ->  | H147: =IF($F$6<>"Vlaanderen","",'Resultaten I'!$D$42) -> 
E148: Mei | F148: =IF($F$6<>"Vlaanderen","",Gegevens!H66) ->  | H148: =IF($F$6<>"Vlaanderen","",'Resultaten I'!$D$42) -> 
E149: Juni | F149: =IF($F$6<>"Vlaanderen","",Gegevens!H67) ->  | H149: =IF($F$6<>"Vlaanderen","",'Resultaten I'!$D$42) -> 
E150: Juli | F150: =IF($F$6<>"Vlaanderen","",Gegevens!H68) ->  | H150: =IF($F$6<>"Vlaanderen","",'Resultaten I'!$D$42) -> 
E151: Augustus | F151: =IF($F$6<>"Vlaanderen","",Gegevens!H69) ->  | H151: =IF($F$6<>"Vlaanderen","",'Resultaten I'!$D$42) -> 
E152: September | F152: =IF($F$6<>"Vlaanderen","",Gegevens!H70) ->  | H152: =IF($F$6<>"Vlaanderen","",'Resultaten I'!$D$42) -> 
E153: Oktober | F153: =IF($F$6<>"Vlaanderen","",Gegevens!H71) ->  | H153: =IF($F$6<>"Vlaanderen","",'Resultaten I'!$D$42) -> 
E154: November | F154: =IF($F$6<>"Vlaanderen","",Gegevens!H72) ->  | H154: =IF($F$6<>"Vlaanderen","",'Resultaten I'!$D$42) -> 
E155: December | F155: =IF($F$6<>"Vlaanderen","",Gegevens!H73) ->  | H155: =IF($F$6<>"Vlaanderen","",'Resultaten I'!$D$42) -> 
E157: Totaal term Financiering van de maatregelen ter bevordering van rationeel energiegebruik : | J157: =SUM(J144:J155) -> 0 | K157: €
C159: e.3.) Financiering van de steunmaatregelen voor hernieuwbare energie (Waals gewest)
D160: =IF($F$6="Wallonië","","Niet van toepassing in deze regio") -> Niet van toepassing in deze regio
D162: e.3.a.) Eerste component
F164: Netto afgenomen energie | H164: Tarief voor eerste component | J164: Bedrag
E165: Januari | F165: =IF($F$6<>"Wallonië","",Gegevens!H62) ->  | G165: =IF($F$6<>"Wallonië","","MWh *") ->  | H165: =IF($F$6<>"Wallonië","",'Resultaten I'!$D$46) ->  | I165: =IF($F$6<>"Wallonië","","€/MWh =") ->  | J165: =IF($F$6<>"Wallonië","",F165*H165) ->  | K165: =IF($F$6<>"Wallonië","","€") -> 
E166: Februari | F166: =IF($F$6<>"Wallonië","",Gegevens!H63) ->  | H166: =IF($F$6<>"Wallonië","",'Resultaten I'!$D$46) ->  | J166: =IF($F$6<>"Wallonië","",F166*H166) -> 
E167: Maart | F167: =IF($F$6<>"Wallonië","",Gegevens!H64) ->  | H167: =IF($F$6<>"Wallonië","",'Resultaten I'!$D$46) -> 
E168: April | F168: =IF($F$6<>"Wallonië","",Gegevens!H65) ->  | H168: =IF($F$6<>"Wallonië","",'Resultaten I'!$D$46) -> 
E169: Mei | F169: =IF($F$6<>"Wallonië","",Gegevens!H66) ->  | H169: =IF($F$6<>"Wallonië","",'Resultaten I'!$D$46) -> 
E170: Juni | F170: =IF($F$6<>"Wallonië","",Gegevens!H67) ->  | H170: =IF($F$6<>"Wallonië","",'Resultaten I'!$D$46) -> 
E171: Juli | F171: =IF($F$6<>"Wallonië","",Gegevens!H68) ->  | H171: =IF($F$6<>"Wallonië","",'Resultaten I'!$D$46) -> 
E172: Augustus | F172: =IF($F$6<>"Wallonië","",Gegevens!H69) ->  | H172: =IF($F$6<>"Wallonië","",'Resultaten I'!$D$46) -> 
E173: September | F173: =IF($F$6<>"Wallonië","",Gegevens!H70) ->  | H173: =IF($F$6<>"Wallonië","",'Resultaten I'!$D$46) -> 
E174: Oktober | F174: =IF($F$6<>"Wallonië","",Gegevens!H71) ->  | H174: =IF($F$6<>"Wallonië","",'Resultaten I'!$D$46) -> 
E175: November | F175: =IF($F$6<>"Wallonië","",Gegevens!H72) ->  | H175: =IF($F$6<>"Wallonië","",'Resultaten I'!$D$46) -> 
E176: December | F176: =IF($F$6<>"Wallonië","",Gegevens!H73) ->  | H176: =IF($F$6<>"Wallonië","",'Resultaten I'!$D$46) -> 
E178: Totaal term voor Financiering van de steunmaatregelen voor hernieuwbare energie : | J178: =SUM(J165:J176) -> 0 | K178: €
D181: De vrijstelling van de eerste component en de facturatie van de tweede component worden op kwartaalbasis gemaakt op basis van een door de SPW ontvangen bestand
D182: op basis van de door de SPW vastgestelde heffing en tarief.
D183: De principes worden beschreven in de richtlijnen van de SPW.
D184: Voor meer informatie, zie https://www.elia.be/fr/clients/certificats-verts-et-surcharges/wallonie-exemptions-partielles#Partial exemptions. (in her Frans)
D185: De onderstaande berekening is louter indicatief op basis van het gesimuleerde afname volume en op basis van het tarief voor de eerste component.
D187: e.3.b.) Vrijstelling eerste component
F188: Netto afgenomen energie | H188: Vrijgesteld tarief | J188: Bedrag | M188: Vrijstelling
E189: Januari | F189: =IF($F$6<>"Wallonië","",Gegevens!H62) ->  | G189: =IF($F$6<>"Wallonië","","MWh *") ->  | H189: =IF($F$6<>"Wallonië","",-'Resultaten I'!$D$46*$M$189) ->  | I189: =IF($F$6<>"Wallonië","","€/MWh =") ->  | J189: =IF($F$6<>"Wallonië","",F189*H189) ->  | K189: =IF($F$6<>"Wallonië","","€") ->  | M189: =IF($F$6<>"Wallonië","",IF($F$8="Nee",0,IF($F$9="Ja",0.85,IF($F$10="Ander",0,IF($F$10="Plantaardige en dierlijke productie (01)",0.5,IF(Gegevens!H74>1000,0.5,0)))))) -> 
E190: Februari | F190: =IF($F$6<>"Wallonië","",Gegevens!H63) ->  | H190: =IF($F$6<>"Wallonië","",-'Resultaten I'!$D$46*$M$189) -> 
E191: Maart | F191: =IF($F$6<>"Wallonië","",Gegevens!H64) ->  | H191: =IF($F$6<>"Wallonië","",-'Resultaten I'!$D$46*$M$189) -> 
E192: April | F192: =IF($F$6<>"Wallonië","",Gegevens!H65) ->  | H192: =IF($F$6<>"Wallonië","",-'Resultaten I'!$D$46*$M$189) -> 
E193: Mei | F193: =IF($F$6<>"Wallonië","",Gegevens!H66) ->  | H193: =IF($F$6<>"Wallonië","",-'Resultaten I'!$D$46*$M$189) -> 
E194: Juni | F194: =IF($F$6<>"Wallonië","",Gegevens!H67) ->  | H194: =IF($F$6<>"Wallonië","",-'Resultaten I'!$D$46*$M$189) -> 
E195: Juli | F195: =IF($F$6<>"Wallonië","",Gegevens!H68) ->  | H195: =IF($F$6<>"Wallonië","",-'Resultaten I'!$D$46*$M$189) -> 
E196: Augustus | F196: =IF($F$6<>"Wallonië","",Gegevens!H69) ->  | H196: =IF($F$6<>"Wallonië","",-'Resultaten I'!$D$46*$M$189) -> 
E197: September | F197: =IF($F$6<>"Wallonië","",Gegevens!H70) ->  | H197: =IF($F$6<>"Wallonië","",-'Resultaten I'!$D$46*$M$189) -> 
E198: Oktober | F198: =IF($F$6<>"Wallonië","",Gegevens!H71) ->  | H198: =IF($F$6<>"Wallonië","",-'Resultaten I'!$D$46*$M$189) -> 
E199: November | F199: =IF($F$6<>"Wallonië","",Gegevens!H72) ->  | H199: =IF($F$6<>"Wallonië","",-'Resultaten I'!$D$46*$M$189) -> 
E200: December | F200: =IF($F$6<>"Wallonië","",Gegevens!H73) ->  | H200: =IF($F$6<>"Wallonië","",-'Resultaten I'!$D$46*$M$189) -> 
I202: Totaal vrijstelling eerste component : | J202: =SUM(J189:J200) -> 0 | K202: €
D204: e.3.c.) Tweede component
F205: Netto afgenomen energie | H205: Tarief voor tweede component | J205: Bedrag
E206: Januari | F206: =IF($F$6<>"Wallonië","",Gegevens!H62) ->  | G206: =IF($F$6<>"Wallonië","","MWh *") ->  | H206: =IF($F$6<>"Wallonië","",'Resultaten I'!$E$46) ->  | I206: =IF($F$6<>"Wallonië","","€/MWh =") ->  | J206: =IF($F$6<>"Wallonië","",F206*H206*$M$189) ->  | K206: =IF($F$6<>"Wallonië","","€") -> 
E207: Februari | F207: =IF($F$6<>"Wallonië","",Gegevens!H63) ->  | H207: =IF($F$6<>"Wallonië","",'Resultaten I'!$E$46) -> 
E208: Maart | F208: =IF($F$6<>"Wallonië","",Gegevens!H64) ->  | H208: =IF($F$6<>"Wallonië","",'Resultaten I'!$E$46) -> 
E209: April | F209: =IF($F$6<>"Wallonië","",Gegevens!H65) ->  | H209: =IF($F$6<>"Wallonië","",'Resultaten I'!$E$46) -> 
E210: Mei | F210: =IF($F$6<>"Wallonië","",Gegevens!H66) ->  | H210: =IF($F$6<>"Wallonië","",'Resultaten I'!$E$46) -> 
E211: Juni | F211: =IF($F$6<>"Wallonië","",Gegevens!H67) ->  | H211: =IF($F$6<>"Wallonië","",'Resultaten I'!$E$46) -> 
E212: Juli | F212: =IF($F$6<>"Wallonië","",Gegevens!H68) ->  | H212: =IF($F$6<>"Wallonië","",'Resultaten I'!$E$46) -> 
E213: Augustus | F213: =IF($F$6<>"Wallonië","",Gegevens!H69) ->  | H213: =IF($F$6<>"Wallonië","",'Resultaten I'!$E$46) -> 
E214: September | F214: =IF($F$6<>"Wallonië","",Gegevens!H70) ->  | H214: =IF($F$6<>"Wallonië","",'Resultaten I'!$E$46) -> 
E215: Oktober | F215: =IF($F$6<>"Wallonië","",Gegevens!H71) ->  | H215: =IF($F$6<>"Wallonië","",'Resultaten I'!$E$46) -> 
E216: November | F216: =IF($F$6<>"Wallonië","",Gegevens!H72) ->  | H216: =IF($F$6<>"Wallonië","",'Resultaten I'!$E$46) -> 
E217: December | F217: =IF($F$6<>"Wallonië","",Gegevens!H73) ->  | H217: =IF($F$6<>"Wallonië","",'Resultaten I'!$E$46) -> 
I219: Totaal facturatie tweede component van de hernieuwbare energie : | J219: =SUM(J206:J217) -> 0 | K219: €
E221: Totaal vrijstelling eerste component en facturatie tweede component van de hernieuwbare energie : | J221: =J202+J219 -> 0 | K221: €
C224: e.4.) Financiering van de steunmaatregelen voor hernieuwbare energie (Brussels gewest)
D225: =IF($F$6="Het Brussels gewest","","Niet van toepassing in deze regio") -> 
F227: Netto afgenomen energie | H227: Tarief voor eerste component | J227: Bedrag
E228: Januari | F228: =IF($F$6<>"Het Brussels gewest","",Gegevens!H130) -> 0 | G228: =IF($F$6<>"Het Brussels gewest","","MWh *") -> MWh * | H228: =IF($F$6<>"Het Brussels Gewest","",'Resultaten I'!$D$49) -> 0.5949 | I228: =IF($F$6<>"Het Brussels Gewest","","€/MWh =") -> €/MWh = | J228: =IF($F$6<>"Het Brussels Gewest","",F228*H228) -> 0 | K228: =IF($F$6<>"Het Brussels Gewest","","€") -> €
E229: Februari | F229: =IF($F$6<>"Het Brussels gewest","",Gegevens!H131) -> 0 | G229: =IF($F$6<>"Het Brussels gewest","","MWh *") -> MWh * | H229: =IF($F$6<>"Het Brussels Gewest","",'Resultaten I'!$D$49) -> 0.5949 | I229: =IF($F$6<>"Het Brussels Gewest","","€/MWh =") -> €/MWh = | J229: =IF($F$6<>"Het Brussels Gewest","",F229*H229) -> 0 | K229: =IF($F$6<>"Het Brussels Gewest","","€") -> €
E230: Maart | F230: =IF($F$6<>"Het Brussels gewest","",Gegevens!H132) -> 0 | G230: MWh * | H230: =IF($F$6<>"Het Brussels Gewest","",'Resultaten I'!$D$49) -> 0.5949 | I230: €/MWh = | J230: 0 | K230: €
E231: April | F231: =IF($F$6<>"Het Brussels gewest","",Gegevens!H133) -> 0 | G231: MWh * | H231: =IF($F$6<>"Het Brussels Gewest","",'Resultaten I'!$D$49) -> 0.5949 | I231: €/MWh = | J231: 0 | K231: €
E232: Mei | F232: =IF($F$6<>"Het Brussels gewest","",Gegevens!H134) -> 0 | G232: MWh * | H232: =IF($F$6<>"Het Brussels Gewest","",'Resultaten I'!$D$49) -> 0.5949 | I232: €/MWh = | J232: 0 | K232: €
E233: Juni | F233: =IF($F$6<>"Het Brussels gewest","",Gegevens!H135) -> 0 | G233: MWh * | H233: =IF($F$6<>"Het Brussels Gewest","",'Resultaten I'!$D$49) -> 0.5949 | I233: €/MWh = | J233: 0 | K233: €
E234: Juli | F234: =IF($F$6<>"Het Brussels gewest","",Gegevens!H136) -> 0 | G234: MWh * | H234: =IF($F$6<>"Het Brussels Gewest","",'Resultaten I'!$D$49) -> 0.5949 | I234: €/MWh = | J234: 0 | K234: €
E235: Augustus | F235: =IF($F$6<>"Het Brussels gewest","",Gegevens!H137) -> 0 | G235: MWh * | H235: =IF($F$6<>"Het Brussels Gewest","",'Resultaten I'!$D$49) -> 0.5949 | I235: €/MWh = | J235: 0 | K235: €
E236: September | F236: =IF($F$6<>"Het Brussels gewest","",Gegevens!H138) -> 0 | G236: MWh * | H236: =IF($F$6<>"Het Brussels Gewest","",'Resultaten I'!$D$49) -> 0.5949 | I236: €/MWh = | J236: 0 | K236: €
E237: Oktober | F237: =IF($F$6<>"Het Brussels gewest","",Gegevens!H139) -> 0 | G237: MWh * | H237: =IF($F$6<>"Het Brussels Gewest","",'Resultaten I'!$D$49) -> 0.5949 | I237: €/MWh = | J237: 0 | K237: €
E238: November | F238: =IF($F$6<>"Het Brussels gewest","",Gegevens!H140) -> 0 | G238: MWh * | H238: =IF($F$6<>"Het Brussels Gewest","",'Resultaten I'!$D$49) -> 0.5949 | I238: €/MWh = | J238: 0 | K238: €
E239: December | F239: =IF($F$6<>"Het Brussels gewest","",Gegevens!H141) -> 0 | G239: MWh * | H239: =IF($F$6<>"Het Brussels Gewest","",'Resultaten I'!$D$49) -> 0.5949 | I239: €/MWh = | J239: 0 | K239: €
E241: Totaal voor Financiering van de steunmaatregelen voor hernieuwbare energie : | J241: =SUM(J228:J239) -> 0 | K241: €
I243: Totaal term voor openbare Dienstverplichtingen : | J243: =J139+J157+J178+J241 -> 0 | K243: €
B245: f) Taksen en Toeslagen :
C247: f.1.) Gebruik van het openbaar domein (Waals gewest)
D248: =IF($F$6="Wallonië","","Niet van toepassing in deze regio") -> Niet van toepassing in deze regio
F249: Netto afgenomen energie | H249: Tarief | J249: Bedrag
E250: Januari | F250: =IF($F$6<>"Wallonië","",Gegevens!H62) ->  | G250: =IF($F$6<>"Wallonië","","MWh *") ->  | H250: =IF($F$6<>"Wallonië","",'Resultaten I'!$D$54) ->  | I250: =IF($F$6<>"Wallonië","","€/MWh =") ->  | J250: =IF($F$6<>"Wallonië","",F250*H250) ->  | K250: =IF($F$6<>"Wallonië","","€") -> 
E251: Februari | F251: =IF($F$6<>"Wallonië","",Gegevens!H63) ->  | H251: =IF($F$6<>"Wallonië","",'Resultaten I'!$D$54) ->  | J251: =IF($F$6<>"Wallonië","",F251*H251) -> 
E252: Maart | F252: =IF($F$6<>"Wallonië","",Gegevens!H64) ->  | H252: =IF($F$6<>"Wallonië","",'Resultaten I'!$D$54) ->  | J252: =IF($F$6<>"Wallonië","",F252*H252) -> 
E253: April | F253: =IF($F$6<>"Wallonië","",Gegevens!H65) ->  | H253: =IF($F$6<>"Wallonië","",'Resultaten I'!$D$54) -> 
E254: Mei | F254: =IF($F$6<>"Wallonië","",Gegevens!H66) ->  | H254: =IF($F$6<>"Wallonië","",'Resultaten I'!$D$54) -> 
E255: Juni | F255: =IF($F$6<>"Wallonië","",Gegevens!H67) ->  | H255: =IF($F$6<>"Wallonië","",'Resultaten I'!$D$54) -> 
... 45 more rows

Sheet Tarieven
B2: TARIFS
B5: A. Tarieven voor het beheer en de ontwikkeling van de netinfrastructuur
C7: 1. Tarieven voor de maandpiek voor afname
F8: €/kW netto afgenomen per maand
D9: In 380/220/150 kV-netten | F9: 0.5292
D10: In 70/36/30 kV-netten | F10: 0.773
D11: Bij de uitgang van de transformaties naar Middenspanning | F11: 1.0275
C14: 2. Tarieven voor de jaarpiek voor afname
F15: €/kW netto afgenomen per jaar
D16: In 380/220/150 kV-netten | F16: 12.9893
D17: In 70/36/30 kV-netten | F17: 18.7555
D18: Bij de uitgang van de transformaties naar Middenspanning | F18: 24.6648
C21: 3. Tarieven voor het ter beschikking gestelde vermogen voor afname
F22: Hoofd TP | G22: Bijkomend TP
F23: €/kVA voor afname per jaar | G23: €/kVA voor afname per jaar
D24: In 380/220/150 kV-netten | F24: 10.0215 | G24: 2.0043
D25: In 70/36/30 kV-netten | F25: 17.3818 | G25: 3.4764
D26: Bij de uitgang van de transformaties naar Middenspanning | F26: 31.0837 | G26: 6.2167
B29: B. Tarieven voor het beheer van het elektrisch systeem
F31: €/MWh netto afgenomen
D32: In 380/220/150 kV-netten | F32: 2.7264
D33: In 70/36/30 kV-netten | F33: 4.1341
D34: Bij de uitgang van de transformaties naar Middenspanning | F34: 7.2319
B37: C. Tarieven voor de vermogensreserves en de black start
C39: 1. voor de afname
F40: €/MWh netto afgenomen
D41: In 380/220/150 kV-netten | F41: 1.6203
D42: In 70/36/30 kV-netten | F42: 1.6203
D43: Bij de uitgang van de transformaties naar Middenspanning | F43: 1.6203
C45: 2. voor de injectie
F46: €/MWh netto geïnjecteerd
D47: In 380/220/150 kV-netten | F47: 1.05
D48: In 70/36/30 kV-netten | F48: 1.05
D49: Bij de uitgang van de transformaties naar Middenspanning | F49: 1.05
B52: D. Tarieven voor integratie van de elektriciteitsmarkt
F53: €/MWh netto afgenomen
D54: In 380/220/150 kV-netten | F54: 0.6682
D55: In 70/36/30 kV-netten | F55: 0.6682
D56: Bij de uitgang van de transformaties naar Middenspanning | F56: 0.6682
B59: E. Tarieven voor Openbare Dienstverplichtingen
C61: 1. Tarief voor openbare dienstverplichtingen voor de financiering van de steunmaatregelen voor hernieuwbare energie en warmtekrachtkoppeling in Vlaanderen
F62: €/MWh netto afgenomen
D63: In 380/220/150 kV-netten | F63: 0
D64: In 70/36/30 kV-netten | F64: 0.3722
D65: Bij de uitgang van de transformaties naar Middenspanning | F65: 0.3722
C68: 2. Tarief voor openbare dienstverplichtingen voor de financiering van de maatregelen ter bevordering van rationeel energiegebruik in Vlaanderen
F69: €/MWh netto afgenomen
D70: In 380/220/150 kV-netten | F70: 0
D71: In 70/36/30 kV-netten | F71: 0.043
D72: Bij de uitgang van de transformaties naar Middenspanning | F72: 0.043
C75: 3. Tarief voor openbare dienstverplichtingen voor de financiering van de steunmaatregelen voor hernieuwbare energie in Wallonië
F76: Eerste component | G76: Tweede component
F77: €/MWh netto afgenomen | G77: €/MWh netto afgenomen
D78: In 380/220/150 kV-netten | F78: 0 | G78: 0
D79: In 70/36/30 kV-netten | F79: 5.9249 | G79: 0
D80: Bij de uitgang van de transformaties naar Middenspanning | F80: 5.9249 | G80: 0
C82: 4. Tarief voor openbare dienstverplichtingen voor de financiering van de steunmaatregelen voor hernieuwbare energie in Brussel
F83: €/MWh netto afgenomen
D84: In 380/220/150 kV-netten | F84: 0
D85: In 70/36/30 kV-netten | F85: 0.5949
D86: Bij de uitgang van de transformaties naar Middenspanning | F86: 0.5949
B88: F. Taksen en Toeslagen
C90: 1. Toeslag voor het gebruik van het openbaar domein in Wallonië
F91: €/MWh netto afgenomen
D92: In 380/220/150 kV-netten | F92: 0
D93: In 70/36/30 kV-netten | F93: 0.398
D94: Bij de uitgang van de transformaties naar Middenspanning | F94: 0.398
C97: 2. Toeslag retributie wegenisrecht in Brussel
F98: €/MWh netto afgenomen
D99: In 380/220/150 kV-netten | F99: 4.1778
D100: In 70/36/30 kV-netten | F100: 4.1778
D101: Bij de uitgang van de transformaties naar Middenspanning | F101: 0
C104: 3. Toeslag voor de taksen “masten” en “sleuven” in Vlaanderen
F105: €/MWh netto afgenomen
D106: In 380/220/150 kV-netten | F106: 0.5429
D107: In 70/36/30 kV-netten | F107: 0.5429
D108: Bij de uitgang van de transformaties naar Middenspanning | F108: 0.5429
